[Event "*** Titled Tuesday Blitz"]
[Site "Chess.com"]
[Date "2021.03.30"]
[Round "8"]
[White "igorkovalenko"]
[Black "kuli4ik"]
[Result "1-0"]
[WhiteElo "2964"]
[BlackElo "2865"]
[TimeControl "180+1"]
[EndTime "11:33:32 PDT"]
[Termination "igorkovalenko won on time"]

1. d4 {[%clk 0:03:00.9]} 1... d5 {[%clk 0:02:55.1]} 2. Nf3 {[%clk 0:03:01.4]}
2... Nf6 {[%clk 0:02:54.7]} 3. c4 {[%clk 0:03:01.6]} 3... c6 {[%clk 0:02:54.3]}
4. Nc3 {[%clk 0:03:01.6]} 4... dxc4 {[%clk 0:02:54.8]} 5. a4 {[%clk 0:03:01.6]}
5... Bf5 {[%clk 0:02:54.4]} 6. Ne5 {[%clk 0:03:01.9]} 6... Na6 {[%clk
0:02:54.2]} 7. f3 {[%clk 0:03:01.1]} 7... Nd7 {[%clk 0:02:53.7]} 8. Nxc4 {[%clk
0:03:00.7]} 8... e5 {[%clk 0:02:53]} 9. dxe5 {[%clk 0:02:57.3]} 9... Qh4+ {[%clk
0:02:52.3]} 10. g3 {[%clk 0:02:56.4]} 10... Qxc4 {[%clk 0:02:52.1]} 11. e4
{[%clk 0:02:56.7]} 11... Qc5 {[%clk 0:02:48.8]} 12. exf5 {[%clk 0:02:51.8]}
12... Qxe5+ {[%clk 0:02:44.5]} 13. Qe2 {[%clk 0:02:51.6]} 13... Nb4 {[%clk
0:02:40.2]} 14. Kf2 {[%clk 0:02:48.8]} 14... O-O-O {[%clk 0:02:36]} 15. Qxe5
{[%clk 0:02:45.4]} 15... Nxe5 {[%clk 0:02:36.9]} 16. Kg2 {[%clk 0:02:45.7]}
16... Bc5 {[%clk 0:02:30.2]} 17. Ne4 {[%clk 0:02:41.9]} 17... Bd4 {[%clk
0:02:25.5]} 18. Rb1 {[%clk 0:02:36.3]} 18... Rhe8 {[%clk 0:02:09.9]} 19. b3
{[%clk 0:02:35]} 19... f6 {[%clk 0:02:02]} 20. h4 {[%clk 0:02:27.1]} 20... Nd5
{[%clk 0:01:59]} 21. Bd2 {[%clk 0:02:06.2]} 21... Be3 {[%clk 0:01:52]} 22. Ba5
{[%clk 0:02:03.7]} 22... Bb6 {[%clk 0:01:46.7]} 23. Bxb6 {[%clk 0:01:57.8]}
23... axb6 {[%clk 0:01:46.4]} 24. Kf2 {[%clk 0:01:57.1]} 24... Ne7 {[%clk
0:01:41.2]} 25. g4 {[%clk 0:01:52]} 25... Nd5 {[%clk 0:01:40.8]} 26. Kg3 {[%clk
0:01:44.5]} 26... Ne3 {[%clk 0:01:29]} 27. Re1 {[%clk 0:01:19.9]} 27... Nc2
{[%clk 0:01:18.8]} 28. Rb1 {[%clk 0:01:14.2]} 28... Kc7 {[%clk 0:01:08.8]} 29.
g5 {[%clk 0:01:09.9]} 29... Nd4 {[%clk 0:00:55.7]} 30. gxf6 {[%clk 0:01:09.4]}
30... gxf6 {[%clk 0:00:41.9]} 31. Kf4 {[%clk 0:01:07.9]} 31... Nexf3 {[%clk
0:00:32.4]} 32. Rd1 {[%clk 0:00:48.7]} 32... Re5 {[%clk 0:00:16.7]} 33. Bh3
{[%clk 0:00:43]} 33... Nxh4 {[%clk 0:00:15.1]} 34. Nxf6 {[%clk 0:00:43.2]} 34...
Re7 {[%clk 0:00:12.5]} 35. Rhe1 {[%clk 0:00:39.8]} 35... Rxe1 {[%clk 0:00:10]}
36. Rxe1 {[%clk 0:00:39.7]} 36... Rf8 {[%clk 0:00:10.5]} 37. Ne8+ {[%clk
0:00:34.4]} 37... Kd8 {[%clk 0:00:10]} 38. Nd6 {[%clk 0:00:34.1]} 38... Kc7
{[%clk 0:00:07.5]} 39. Rd1 {[%clk 0:00:27.7]} 39... c5 {[%clk 0:00:06.5]} 40.
Nb5+ {[%clk 0:00:27.1]} 40... Nxb5 {[%clk 0:00:06.2]} 41. axb5 {[%clk 0:00:28]}
41... Ng6+ {[%clk 0:00:06.7]} 42. Kg5 {[%clk 0:00:27.5]} 42... Ne5 {[%clk
0:00:06.6]} 43. Kh6 {[%clk 0:00:21.2]} 43... Rf7 {[%clk 0:00:04.1]} 44. Rd5
{[%clk 0:00:14]} 44... Nf3 {[%clk 0:00:04.3]} 45. Bg4 {[%clk 0:00:13.7]} 45...
Nd4 {[%clk 0:00:04.7]} 46. Kg5 {[%clk 0:00:13.7]} 46... Rg7+ {[%clk 0:00:04.1]}
47. Kf4 {[%clk 0:00:13.1]} 47... Rf7 {[%clk 0:00:04.5]} 48. Bh5 {[%clk
0:00:12.9]} 48... Rf6 {[%clk 0:00:04.9]} 49. Kg5 {[%clk 0:00:13]} 49... Rf8
{[%clk 0:00:03.5]} 50. b4 {[%clk 0:00:10.6]} 50... Nxb5 {[%clk 0:00:02.8]} 51.
bxc5 {[%clk 0:00:10.9]} 51... bxc5 {[%clk 0:00:03.1]} 52. Rxc5+ {[%clk
0:00:11.2]} 52... Kb6 {[%clk 0:00:04]} 53. Re5 {[%clk 0:00:11.5]} 53... Nd6
{[%clk 0:00:02.7]} 54. Re6 {[%clk 0:00:11.4]} 54... Kc5 {[%clk 0:00:02.7]} 55.
f6 {[%clk 0:00:11.8]} 55... b5 {[%clk 0:00:02.3]} 56. Bd1 {[%clk 0:00:08.4]}
56... b4 {[%clk 0:00:02.6]} 57. Bb3 {[%clk 0:00:08.6]} 57... Kc6 {[%clk
0:00:02]} 58. Kh6 {[%clk 0:00:08.3]} 58... Kc5 {[%clk 0:00:01.9]} 59. Kg7 {[%clk
0:00:08.5]} 59... Rd8 {[%clk 0:00:02.5]} 60. Kxh7 {[%clk 0:00:08.7]} 60... Rd7+
{[%clk 0:00:02.8]} 61. Kg6 {[%clk 0:00:09.1]} 61... Ra7 {[%clk 0:00:03.2]} 62.
Re5+ {[%clk 0:00:09]} 62... Kc6 {[%clk 0:00:02.9]} 63. Be6 {[%clk 0:00:09.3]}
63... Rc7 {[%clk 0:00:01.6]} 64. Bd5+ {[%clk 0:00:09.6]} 64... Kb6 {[%clk
0:00:01.7]} 65. Be6 {[%clk 0:00:09.8]} 65... Kc6 {[%clk 0:00:01.9]} 66. Bd5+
{[%clk 0:00:09.9]} 66... Kb6 {[%clk 0:00:02.4]} 67. Re1 {[%clk 0:00:09.6]} 67...
Kb5 {[%clk 0:00:01.9]} 68. Be6 {[%clk 0:00:09.7]} 68... Kb6 {[%clk 0:00:02.3]}
69. Rd1 {[%clk 0:00:10]} 69... Kc6 {[%clk 0:00:02.9]} 70. f7 {[%clk 0:00:10.5]}
70... Nxf7 {[%clk 0:00:02.6]} 71. Bxf7 {[%clk 0:00:11.4]} 71... Kb5 {[%clk
0:00:03.3]} 72. Kf6 {[%clk 0:00:11.2]} 72... Rc5 {[%clk 0:00:04.2]} 73. Be6
{[%clk 0:00:11.4]} 73... Kb6 {[%clk 0:00:05.1]} 74. Rb1 {[%clk 0:00:11.7]} 74...
Kb5 {[%clk 0:00:05]} 75. Ke7 {[%clk 0:00:11.9]} 75... Rc3 {[%clk 0:00:05.2]} 76.
Kd6 {[%clk 0:00:12.1]} 76... Rd3+ {[%clk 0:00:05]} 77. Ke5 {[%clk 0:00:12]}
77... Kc5 {[%clk 0:00:05.3]} 78. Bf5 {[%clk 0:00:12.1]} 78... Re3+ {[%clk
0:00:05.5]} 79. Kf4 {[%clk 0:00:12.5]} 79... Rc3 {[%clk 0:00:06.1]} 80. Be6
{[%clk 0:00:12.7]} 80... Rd3 {[%clk 0:00:05.3]} 81. Ke4 {[%clk 0:00:12.6]} 81...
Rc3 {[%clk 0:00:05.7]} 82. Bf7 {[%clk 0:00:12.2]} 82... Rc2 {[%clk 0:00:05.5]}
83. Kd3 {[%clk 0:00:12]} 83... Rc3+ {[%clk 0:00:05.9]} 84. Kd2 {[%clk
0:00:12.4]} 84... Rf3 {[%clk 0:00:06]} 85. Bg8 {[%clk 0:00:11.3]} 85... Rg3
{[%clk 0:00:06]} 86. Bf7 {[%clk 0:00:11.2]} 86... Rf3 {[%clk 0:00:06.3]} 87. Be6
{[%clk 0:00:11.7]} 87... Rf2+ {[%clk 0:00:04.8]} 88. Ke3 {[%clk 0:00:11.7]}
88... Rc2 {[%clk 0:00:04.3]} 89. Rh1 {[%clk 0:00:11.4]} 89... Rc3+ {[%clk
0:00:04.4]} 90. Kd2 {[%clk 0:00:11.1]} 90... Rg3 {[%clk 0:00:02.7]} 91. Rh5+
{[%clk 0:00:10.9]} 91... Kd4 {[%clk 0:00:02.8]} 92. Rh4+ {[%clk 0:00:10.7]}
92... Kc5 {[%clk 0:00:03.1]} 93. Kc2 {[%clk 0:00:10.7]} 93... Rc3+ {[%clk
0:00:02.7]} 94. Kb2 {[%clk 0:00:10.8]} 94... Re3 {[%clk 0:00:03.6]} 95. Bf5
{[%clk 0:00:10.6]} 95... Re2+ {[%clk 0:00:03.4]} 96. Bc2 {[%clk 0:00:10.6]}
96... Re5 {[%clk 0:00:02.6]} 97. Kb3 {[%clk 0:00:10.4]} 97... Re3+ {[%clk
0:00:02.8]} 98. Kb2 {[%clk 0:00:10.8]} 98... Re5 {[%clk 0:00:02.7]} 99. Rg4
{[%clk 0:00:11.1]} 99... Rd5 {[%clk 0:00:03]} 100. Rg3 {[%clk 0:00:11.3]} 100...
Re5 {[%clk 0:00:03.3]} 101. Bd3 {[%clk 0:00:11.5]} 101... Kd4 {[%clk 0:00:03]}
102. Bf1 {[%clk 0:00:10.3]} 102... Re3 {[%clk 0:00:02.8]} 103. Rg4+ {[%clk
0:00:10.5]} 103... Kc5 {[%clk 0:00:03.3]} 104. Rc4+ {[%clk 0:00:10.8]} 104...
Kd5 {[%clk 0:00:02.7]} 105. Rxb4 {[%clk 0:00:11.2]} 105... Re5 {[%clk 0:00:03]}
106. Rb5+ {[%clk 0:00:10.8]} 106... Kd6 {[%clk 0:00:03.3]} 107. Rb4 {[%clk
0:00:10.9]} 107... Kd5 {[%clk 0:00:03.7]} 108. Rh4 {[%clk 0:00:11.2]} 108... Kc5
{[%clk 0:00:03.8]} 109. Kc3 {[%clk 0:00:11.3]} 109... Re3+ {[%clk 0:00:04]} 110.
Bd3 {[%clk 0:00:11.8]} 110... Re5 {[%clk 0:00:04.9]} 111. Ra4 {[%clk 0:00:11.6]}
111... Kd6 {[%clk 0:00:05.1]} 112. Ra6+ {[%clk 0:00:11.6]} 112... Kc5 {[%clk
0:00:05.3]} 113. Rh6 {[%clk 0:00:10.6]} 113... Kd5 {[%clk 0:00:05]} 114. Bc4+
{[%clk 0:00:10.3]} 114... Kc5 {[%clk 0:00:05.5]} 115. Rh8 {[%clk 0:00:09.9]}
115... Re3+ {[%clk 0:00:05.7]} 116. Bd3 {[%clk 0:00:10.1]} 116... Re5 {[%clk
0:00:06.6]} 117. Rc8+ {[%clk 0:00:10.2]} 117... Kd5 {[%clk 0:00:06.9]} 118. Bc4+
{[%clk 0:00:10.4]} 118... Kd6 {[%clk 0:00:05.4]} 119. Kd4 {[%clk 0:00:11.3]}
119... Re7 {[%clk 0:00:03.4]} 120. Rh8 {[%clk 0:00:10.6]} 120... Kd7 {[%clk
0:00:01.3]} 121. Rh6 {[%clk 0:00:10.7]} 121... Kc7 {[%clk 0:00:01.6]} 122. Kc5
{[%clk 0:00:10.7]} 122... Re5+ {[%clk 0:00:01.6]} 123. Bd5 {[%clk 0:00:10.9]}
123... Re7 {[%clk 0:00:02.5]} 124. Ra6 {[%clk 0:00:11]} 124... Kd7 {[%clk
0:00:02.4]} 125. Bc6+ {[%clk 0:00:10.7]} 125... Kc7 {[%clk 0:00:02.4]} 126. Ra7+
{[%clk 0:00:10.2]} 126... Kd8 {[%clk 0:00:02.9]} 127. Ra8+ {[%clk 0:00:10.9]}
127... Kc7 {[%clk 0:00:03.3]} 128. Bd5 {[%clk 0:00:11.1]} 128... Rd7 {[%clk
0:00:03.2]} 129. Be6 {[%clk 0:00:10.4]} 129... Re7 {[%clk 0:00:03.5]} 130. Ra6
{[%clk 0:00:10.2]} 130... Kb7 {[%clk 0:00:02.9]} 131. Rb6+ {[%clk 0:00:08.8]}
131... Kc7 {[%clk 0:00:03.1]} 132. Rd6 {[%clk 0:00:08.8]} 132... Kb7 {[%clk
0:00:02.9]} 133. Kd5 {[%clk 0:00:09.2]} 133... Kc7 {[%clk 0:00:03.3]} 134. Rc6+
{[%clk 0:00:08.7]} 134... Kb7 {[%clk 0:00:03.5]} 135. Rc4 {[%clk 0:00:09.2]}
135... Rc7 {[%clk 0:00:03.2]} 136. Rb4+ {[%clk 0:00:09.5]} 136... Ka6 {[%clk
0:00:03]} 137. Kd6 {[%clk 0:00:09.9]} 137... Ka5 {[%clk 0:00:02.5]} 138. Rb1
{[%clk 0:00:09.4]} 138... Rc3 {[%clk 0:00:02.3]} 139. Bd7 {[%clk 0:00:09.4]}
139... Rd3+ {[%clk 0:00:01.2]} 140. Kc5 {[%clk 0:00:09.2]} 140... Rc3+ {[%clk
0:00:02.1]} 141. Kd4 {[%clk 0:00:09.3]} 141... Rc7 {[%clk 0:00:01.9]} 142. Bb5
{[%clk 0:00:07.6]} 142... Kb6 {[%clk 0:00:01.8]} 143. Be8+ {[%clk 0:00:06.7]}
143... Ka5 {[%clk 0:00:02.1]} 144. Rb2 {[%clk 0:00:06.1]} 144... Ka6 {[%clk
0:00:02.5]} 145. Kd5 {[%clk 0:00:06]} 145... Ka5 {[%clk 0:00:02.4]} 146. Bc6
{[%clk 0:00:06]} 1-0

[Event "*** Titled Tuesday Blitz"]
[Site "Chess.com"]
[Date "2021.03.30"]
[Round "9"]
[White "Twitch_ElhamBlitz05"]
[Black "Legendinunknown"]
[Result "1-0"]
[WhiteElo "2857"]
[BlackElo "2596"]
[TimeControl "180+1"]
[EndTime "11:40:56 PDT"]
[Termination "Twitch_ElhamBlitz05 won by resignation"]

1. e4 {[%clk 0:03:00.9]} 1... e5 {[%clk 0:02:58.2]} 2. Nc3 {[%clk 0:03:00.9]}
2... Nf6 {[%clk 0:02:55.9]} 3. Bc4 {[%clk 0:03:01.5]} 3... Nxe4 {[%clk
0:02:54.6]} 4. Qh5 {[%clk 0:03:01.3]} 4... Nd6 {[%clk 0:02:52.7]} 5. Bb3 {[%clk
0:03:01.2]} 5... Nc6 {[%clk 0:02:49.6]} 6. Nb5 {[%clk 0:03:01]} 6... g6 {[%clk
0:02:48.3]} 7. Qf3 {[%clk 0:03:00.8]} 7... f5 {[%clk 0:02:47.5]} 8. Qd5 {[%clk
0:03:00.7]} 8... Qe7 {[%clk 0:02:46.5]} 9. Nxc7+ {[%clk 0:03:01.1]} 9... Kd8
{[%clk 0:02:46.6]} 10. Nxa8 {[%clk 0:03:02]} 10... b6 {[%clk 0:02:45.5]} 11. h4
{[%clk 0:03:02.7]} 11... Bb7 {[%clk 0:02:42.2]} 12. Qf3 {[%clk 0:03:02.5]} 12...
Bxa8 {[%clk 0:02:32.6]} 13. d3 {[%clk 0:03:02.2]} 13... h6 {[%clk 0:02:31.3]}
14. Bd2 {[%clk 0:03:00.3]} 14... Nd4 {[%clk 0:02:25.4]} 15. Qxa8+ {[%clk
0:02:59.8]} 1-0

[Event "*** Titled Tuesday Blitz"]
[Site "Chess.com"]
[Date "2021.03.30"]
[Round "9"]
[White "Nemsko"]
[Black "catzapto"]
[Result "1-0"]
[WhiteElo "2311"]
[BlackElo "2172"]
[TimeControl "180+1"]
[EndTime "11:41:15 PDT"]
[Termination "Nemsko won by resignation"]

1. e4 {[%clk 0:03:00.9]} 1... c5 {[%clk 0:02:58.8]} 2. Nf3 {[%clk 0:03:01.3]}
2... e6 {[%clk 0:02:59]} 3. d4 {[%clk 0:03:02.2]} 3... cxd4 {[%clk 0:02:57.7]}
4. Nxd4 {[%clk 0:03:03.1]} 4... Nf6 {[%clk 0:02:58.2]} 5. Nc3 {[%clk 0:03:03.3]}
5... Bb4 {[%clk 0:02:58.8]} 6. Bd3 {[%clk 0:03:00.8]} 6... Nc6 {[%clk
0:02:58.2]} 7. Nxc6 {[%clk 0:03:01]} 7... bxc6 {[%clk 0:02:54]} 8. O-O {[%clk
0:02:56.1]} 8... d5 {[%clk 0:02:52.1]} 9. exd5 {[%clk 0:02:53.6]} 9... Nd7
{[%clk 0:02:52.7]} 10. dxc6 {[%clk 0:02:49.2]} 10... Ne5 {[%clk 0:02:48.8]} 11.
Be4 {[%clk 0:02:21.5]} 11... Qc7 {[%clk 0:02:41.8]} 12. Nb5 {[%clk 0:02:18.7]}
1-0

[Event "*** Titled Tuesday Blitz"]
[Site "Chess.com"]
[Date "2021.03.30"]
[Round "9"]
[White "gilbert_gm"]
[Black "Supernotar"]
[Result "1/2-1/2"]
[WhiteElo "2588"]
[BlackElo "2714"]
[TimeControl "180+1"]
[EndTime "11:41:28 PDT"]
[Termination "Game drawn by repetition"]

1. d4 {[%clk 0:02:31.7]} 1... d5 {[%clk 0:02:58.5]} 2. c4 {[%clk 0:02:31.3]}
2... dxc4 {[%clk 0:02:59.4]} 3. e3 {[%clk 0:02:28]} 3... Nf6 {[%clk 0:02:59.6]}
4. Bxc4 {[%clk 0:02:28]} 4... e6 {[%clk 0:03:00.5]} 5. Nf3 {[%clk 0:02:28.1]}
5... a6 {[%clk 0:03:00.4]} 6. O-O {[%clk 0:02:24.6]} 6... b5 {[%clk 0:03:00.7]}
7. Bd3 {[%clk 0:02:24.8]} 7... Bb7 {[%clk 0:03:01.6]} 8. Qe2 {[%clk 0:02:25.3]}
8... Nbd7 {[%clk 0:03:01.2]} 9. a4 {[%clk 0:02:22.3]} 9... b4 {[%clk 0:03:01.4]}
10. Nbd2 {[%clk 0:02:20.3]} 10... c5 {[%clk 0:03:01.7]} 11. Nc4 {[%clk
0:02:19.7]} 11... Qc7 {[%clk 0:03:00.5]} 12. b3 {[%clk 0:02:17.1]} 12... Be7
{[%clk 0:03:00.6]} 13. Bb2 {[%clk 0:02:17.3]} 13... O-O {[%clk 0:03:00.5]} 14.
Rac1 {[%clk 0:02:17.8]} 14... Rac8 {[%clk 0:02:59.6]} 15. Nce5 {[%clk
0:02:14.4]} 15... Qb6 {[%clk 0:02:53.7]} 16. Nc4 {[%clk 0:02:09.1]} 16... Qc7
{[%clk 0:02:53.7]} 17. Nce5 {[%clk 0:02:09]} 17... Qb6 {[%clk 0:02:53.6]} 18.
Nc4 {[%clk 0:02:09.2]} 18... Qc7 {[%clk 0:02:51]} 1/2-1/2

[Event "*** Titled Tuesday Blitz"]
[Site "Chess.com"]
[Date "2021.03.30"]
[Round "9"]
[White "Jumbo"]
[Black "sorrm8thatscheckm8"]
[Result "0-1"]
[WhiteElo "2785"]
[BlackElo "2639"]
[TimeControl "180+1"]
[EndTime "11:41:30 PDT"]
[Termination "sorrm8thatscheckm8 won by resignation"]

1. d4 {[%clk 0:03:00.9]} 1... Nf6 {[%clk 0:02:59.8]} 2. Bf4 {[%clk 0:02:59.1]}
2... g6 {[%clk 0:02:59.5]} 3. e3 {[%clk 0:02:56.7]} 3... Bg7 {[%clk 0:02:59.1]}
4. Nf3 {[%clk 0:02:57.3]} 4... d6 {[%clk 0:02:59.7]} 5. Be2 {[%clk 0:02:57.6]}
5... O-O {[%clk 0:03:00.3]} 6. c4 {[%clk 0:02:56.2]} 6... b6 {[%clk 0:03:00.8]}
7. Nc3 {[%clk 0:02:56.1]} 7... Bb7 {[%clk 0:03:01.3]} 8. Qc2 {[%clk 0:02:56.7]}
8... Nbd7 {[%clk 0:02:58.9]} 9. O-O {[%clk 0:02:53.2]} 9... Re8 {[%clk
0:02:58.1]} 10. e4 {[%clk 0:02:52.4]} 10... e5 {[%clk 0:02:57.8]} 11. dxe5
{[%clk 0:02:52.9]} 11... dxe5 {[%clk 0:02:57.5]} 12. Be3 {[%clk 0:02:53.2]}
12... c6 {[%clk 0:02:55.9]} 13. h3 {[%clk 0:02:52.2]} 13... Qe7 {[%clk
0:02:55.8]} 14. a3 {[%clk 0:02:50.7]} 14... Nh5 {[%clk 0:02:55.1]} 15. g3 {[%clk
0:02:45.2]} 15... Nc5 {[%clk 0:02:50.2]} 16. Rfd1 {[%clk 0:02:39.8]} 16... Rad8
{[%clk 0:02:45.9]} 17. Rd7 {[%clk 0:02:13.5]} 17... Rxd7 {[%clk 0:02:44.4]} 0-1

[Event "*** Titled Tuesday Blitz"]
[Site "Chess.com"]
[Date "2021.03.30"]
[Round "9"]
[White "LEGENYA1998"]
[Black "Trickster_Pony"]
[Result "0-1"]
[WhiteElo "2217"]
[BlackElo "1535"]
[TimeControl "180+1"]
[EndTime "11:41:37 PDT"]
[Termination "Trickster_Pony won by resignation"]

1. e4 {[%clk 0:03:00.9]} 1... c5 {[%clk 0:02:59.8]} 2. Nc3 {[%clk 0:03:00.5]}
2... g6 {[%clk 0:02:57.5]} 3. f4 {[%clk 0:03:00.7]} 3... Bg7 {[%clk 0:02:57.2]}
4. Nf3 {[%clk 0:03:01.4]} 4... Nc6 {[%clk 0:02:57.5]} 5. Bc4 {[%clk 0:03:01.6]}
5... e6 {[%clk 0:02:57.5]} 6. O-O {[%clk 0:03:01.9]} 6... Nge7 {[%clk 0:02:58]}
7. d3 {[%clk 0:03:02.4]} 7... a6 {[%clk 0:02:56.9]} 8. a4 {[%clk 0:03:01.8]}
8... O-O {[%clk 0:02:53.8]} 9. Qe1 {[%clk 0:03:02]} 9... d5 {[%clk 0:02:53]} 10.
Ba2 {[%clk 0:03:01.5]} 10... Nb4 {[%clk 0:02:35.7]} 11. Qf2 {[%clk 0:02:56.2]}
11... Nec6 {[%clk 0:02:29.5]} 12. f5 {[%clk 0:02:54.6]} 12... Nd4 {[%clk
0:02:21.3]} 13. Bg5 {[%clk 0:02:49.4]} 13... Nxf3+ {[%clk 0:02:11.2]} 14. Qxf3
{[%clk 0:02:32.7]} 14... Qxg5 {[%clk 0:02:10.3]} 0-1

[Event "*** Titled Tuesday Blitz"]
[Site "Chess.com"]
[Date "2021.03.30"]
[Round "9"]
[White "novocane"]
[Black "gxbg2000"]
[Result "1-0"]
[WhiteElo "2232"]
[BlackElo "1932"]
[TimeControl "180+1"]
[EndTime "11:42:15 PDT"]
[Termination "novocane won by resignation"]

1. d4 {[%clk 0:02:59.7]} 1... d5 {[%clk 0:02:58.4]} 2. c4 {[%clk 0:03:00]} 2...
c6 {[%clk 0:02:56.6]} 3. cxd5 {[%clk 0:03:00.1]} 3... cxd5 {[%clk 0:02:56]} 4.
Bf4 {[%clk 0:03:00.8]} 4... e6 {[%clk 0:02:55.5]} 5. Nc3 {[%clk 0:03:00.1]} 5...
Bd6 {[%clk 0:02:55.4]} 6. Bxd6 {[%clk 0:03:00.4]} 6... Qxd6 {[%clk 0:02:54.7]}
7. e3 {[%clk 0:03:01]} 7... Nf6 {[%clk 0:02:54.6]} 8. Bd3 {[%clk 0:03:00.1]}
8... a6 {[%clk 0:02:54.7]} 9. f4 {[%clk 0:03:00.4]} 9... O-O {[%clk 0:02:54.2]}
10. Nf3 {[%clk 0:03:00.7]} 10... b5 {[%clk 0:02:53.7]} 11. O-O {[%clk 0:03:00]}
11... Nc6 {[%clk 0:02:50.6]} 12. Ne5 {[%clk 0:02:59.8]} 12... Nb4 {[%clk
0:02:46.9]} 13. Bb1 {[%clk 0:02:59.2]} 13... Bb7 {[%clk 0:02:41.2]} 14. Rf3
{[%clk 0:02:59]} 14... g6 {[%clk 0:02:38.2]} 15. Rh3 {[%clk 0:02:56.2]} 15...
Nc6 {[%clk 0:02:36.4]} 16. Qe1 {[%clk 0:02:53.2]} 16... b4 {[%clk 0:02:30.6]}
17. Na4 {[%clk 0:02:49.8]} 17... Ne7 {[%clk 0:02:19.4]} 18. Nc5 {[%clk
0:02:44.9]} 18... Rab8 {[%clk 0:02:12.6]} 19. Qh4 {[%clk 0:02:41.8]} 19... Nf5
{[%clk 0:02:09.5]} 20. Qxf6 {[%clk 0:02:29.9]} 20... Bc6 {[%clk 0:01:57.3]} 21.
Bxf5 {[%clk 0:02:26.3]} 1-0

[Event "*** Titled Tuesday Blitz"]
[Site "Chess.com"]
[Date "2021.03.30"]
[Round "9"]
[White "Reader777"]
[Black "Niktlt"]
[Result "1-0"]
[WhiteElo "2727"]
[BlackElo "2584"]
[TimeControl "180+1"]
[EndTime "11:43:07 PDT"]
[Termination "Reader777 won by resignation"]

1. d4 {[%clk 0:03:00.9]} 1... Nf6 {[%clk 0:02:59]} 2. c4 {[%clk 0:03:01.1]} 2...
g6 {[%clk 0:02:58.4]} 3. Nc3 {[%clk 0:03:00.4]} 3... Bg7 {[%clk 0:02:58.6]} 4.
e4 {[%clk 0:02:59.4]} 4... d6 {[%clk 0:02:59]} 5. f4 {[%clk 0:02:59.6]} 5... O-O
{[%clk 0:02:58.4]} 6. Nf3 {[%clk 0:02:59.9]} 6... Na6 {[%clk 0:02:58.9]} 7. Bd3
{[%clk 0:02:57.8]} 7... e5 {[%clk 0:02:59]} 8. fxe5 {[%clk 0:02:57.7]} 8... dxe5
{[%clk 0:02:59.9]} 9. d5 {[%clk 0:02:58.1]} 9... c6 {[%clk 0:02:58.9]} 10. O-O
{[%clk 0:02:45.7]} 10... Nc5 {[%clk 0:02:56.6]} 11. Bc2 {[%clk 0:02:44.2]} 11...
Ne8 {[%clk 0:02:50.7]} 12. Be3 {[%clk 0:02:43.1]} 12... b6 {[%clk 0:02:48.4]}
13. dxc6 {[%clk 0:02:26.4]} 13... Qxd1 {[%clk 0:02:47.2]} 14. Rfxd1 {[%clk
0:02:23]} 14... Nc7 {[%clk 0:02:47.8]} 15. b4 {[%clk 0:02:21.2]} 15... N5e6
{[%clk 0:02:47.8]} 16. b5 {[%clk 0:02:19.8]} 16... Nf4 {[%clk 0:02:44.3]} 17.
Nd5 {[%clk 0:02:18.5]} 17... Nfe6 {[%clk 0:02:44]} 18. Ng5 {[%clk 0:02:14.2]}
18... f5 {[%clk 0:02:40.4]} 19. Nxe6 {[%clk 0:02:09.9]} 19... Nxe6 {[%clk
0:02:41.3]} 20. exf5 {[%clk 0:02:10.2]} 20... gxf5 {[%clk 0:02:41.1]} 21. Bxf5
{[%clk 0:02:03.1]} 21... e4 {[%clk 0:02:41]} 22. Rac1 {[%clk 0:01:49.6]} 22...
Rb8 {[%clk 0:02:36.5]} 23. Ne7+ {[%clk 0:01:46.7]} 23... Kh8 {[%clk 0:02:34.9]}
24. Bxe4 {[%clk 0:01:46.4]} 24... Nc5 {[%clk 0:02:32.5]} 25. c7 {[%clk
0:01:38.3]} 25... Rb7 {[%clk 0:02:26.8]} 26. Bxc5 {[%clk 0:01:37.8]} 26... bxc5
{[%clk 0:02:22]} 27. Bxb7 {[%clk 0:01:33.6]} 27... Bxb7 {[%clk 0:02:22.9]} 28.
Rd8 {[%clk 0:01:32.4]} 28... Bd4+ {[%clk 0:02:23.8]} 29. Kh1 {[%clk 0:01:31.6]}
29... Kg7 {[%clk 0:02:24.7]} 30. Rxf8 {[%clk 0:01:30.8]} 30... Kxf8 {[%clk
0:02:25.6]} 1-0

[Event "*** Titled Tuesday Blitz"]
[Site "Chess.com"]
[Date "2021.03.30"]
[Round "9"]
[White "sergeikim"]
[Black "MergenKakabaev"]
[Result "1-0"]
[WhiteElo "2515"]
[BlackElo "2384"]
[TimeControl "180+1"]
[EndTime "11:43:25 PDT"]
[Termination "sergeikim won by resignation"]

1. d4 {[%clk 0:02:59.8]} 1... d5 {[%clk 0:03:00]} 2. c4 {[%clk 0:02:59.3]} 2...
c6 {[%clk 0:03:00]} 3. Nf3 {[%clk 0:02:58.2]} 3... Nf6 {[%clk 0:02:59.6]} 4. Qc2
{[%clk 0:02:57.9]} 4... e6 {[%clk 0:02:59.1]} 5. Nbd2 {[%clk 0:02:57.1]} 5...
Nbd7 {[%clk 0:02:58.4]} 6. g3 {[%clk 0:02:57]} 6... b6 {[%clk 0:02:57.2]} 7. Bg2
{[%clk 0:02:56.8]} 7... Bb7 {[%clk 0:02:57.4]} 8. O-O {[%clk 0:02:56.3]} 8...
Be7 {[%clk 0:02:57.6]} 9. e4 {[%clk 0:02:55]} 9... dxe4 {[%clk 0:02:57.5]} 10.
Nxe4 {[%clk 0:02:54.7]} 10... c5 {[%clk 0:02:58]} 11. Nxf6+ {[%clk 0:02:45.9]}
11... Bxf6 {[%clk 0:02:55.9]} 12. Rd1 {[%clk 0:02:43.5]} 12... Qe7 {[%clk
0:02:54.5]} 13. d5 {[%clk 0:02:35.3]} 13... O-O {[%clk 0:02:52.8]} 14. Re1
{[%clk 0:02:26.5]} 14... e5 {[%clk 0:02:34.6]} 15. Bd2 {[%clk 0:02:17.8]} 15...
Rfe8 {[%clk 0:02:33.2]} 16. Bc3 {[%clk 0:02:17.1]} 16... Qd6 {[%clk 0:02:32.9]}
17. Nd2 {[%clk 0:02:15.8]} 17... Be7 {[%clk 0:02:19.8]} 18. Rad1 {[%clk
0:02:05.8]} 18... Bf8 {[%clk 0:02:15.9]} 19. Bh3 {[%clk 0:01:59.9]} 19... Rad8
{[%clk 0:02:10.8]} 20. Bf5 {[%clk 0:01:54.4]} 20... g6 {[%clk 0:02:10]} 21. Ne4
{[%clk 0:01:51.7]} 21... Qc7 {[%clk 0:01:32.1]} 22. Bxd7 {[%clk 0:01:47.6]} 1-0